Workbook

Sheet Sheet1
B2: A | H2: A' | N2: B | T2: C | Z2: D | AF2: brake | AN2: A | AO2: A' | AP2: B | AQ2: C | AR2: D
B3: factory | C3: LEFT | D3: RIGHT | E3: left | F3: right | G3: symet | H3: factory | I3: LEFT | J3: RIGHT | K3: left | L3: right | M3: symet. | N3: factory | O3: LEFT | P3: RIGHT | Q3: left | R3: dir. | S3: symet | T3: factory | U3: LEFT | V3: RIGHT | W3: left. | X3: right | Y3: symet | Z3: factory | AA3: LEFT | AB3: RIGHT | AC3: left. | AD3: right | AE3: symet | AF3: factory | AG3: LEFT | AH3: RIGHT | AI3: left. | AJ3: right | AK3: symet
A4: 1 | B4: =AN4+$M$24 -> 7202 | E4: =C4-B4 -> -7202 | F4: =D4-B4 -> -7202 | G4: =C4-D4 -> 0 | H4: =AO4+$M$24 -> 7165 | K4: =I4-H4 -> -7165 | L4: =J4-H4 -> -7165 | M4: =I4-J4 -> 0 | N4: =AP4+$M$24 -> 7058 | Q4: =O4-N4 -> -7058 | R4: =P4-N4 -> -7058 | S4: =O4-P4 -> 0 | T4: =AQ4+$M$24 -> 7147.7 | W4: =U4-T4 -> -7147.7 | X4: =V4-T4 -> -7147.7 | Y4: =U4-V4 -> 0 | Z4: =AR4+$M$24 -> 7252.6 | AC4: =AA4-Z4 -> -7252.6 | AD4: =AB4-Z4 -> -7252.6 | AE4: =AA4-AB4 -> 0 | AF4: 7326.1 | AI4: =AF4-AG4 -> 7326.1 | AJ4: =AF4-AH4 -> 7326.1 | AK4: =AG4-AH4 -> 0 | AN4: 7202 | AO4: 7165 | AP4: 7058 | AQ4: 7147.7 | AR4: 7252.6 | AS4: 30
A5: 2 | B5: 7164 | E5: =C5-B5 -> -7164 | F5: =D5-B5 -> -7164 | G5: =C5-D5 -> 0 | H5: 7126 | K5: =I5-H5 -> -7126 | L5: =J5-H5 -> -7126 | M5: =I5-J5 -> 0 | N5: 7029 | Q5: =O5-N5 -> -7029 | R5: =P5-N5 -> -7029 | S5: =O5-P5 -> 0 | T5: 7109.7 | W5: =U5-T5 -> -7109.7 | X5: =V5-T5 -> -7109.7 | Y5: =U5-V5 -> 0 | Z5: 7218 | AC5: =AA5-Z5 -> -7218 | AD5: =AB5-Z5 -> -7218 | AE5: =AA5-AB5 -> 0 | AF5: 7102.8 | AI5: =AF5-AG5 -> 7102.8 | AJ5: =AF5-AH5 -> 7102.8 | AK5: =AG5-AH5 -> 0 | AN5: 7164 | AO5: 7126 | AP5: 7029 | AQ5: 7109.7 | AR5: 7218
A6: 3 | B6: 7126 | E6: -7126 | F6: -7126 | G6: 0 | H6: 7086 | K6: -7086 | L6: -7086 | M6: 0 | N6: 6992 | Q6: -6992 | R6: -6992 | S6: 0 | T6: 7062.1 | W6: -7062.1 | X6: -7062.1 | Y6: 0 | Z6: 7167.9 | AC6: -7167.9 | AD6: -7167.9 | AE6: 0 | AF6: 6927.1 | AI6: 6927.1 | AJ6: 6927.1 | AK6: 0 | AN6: 7126 | AO6: 7086 | AP6: 6992 | AQ6: 7062.1 | AR6: 7167.9
A7: 4 | B7: 7146 | E7: -7146 | F7: -7146 | G7: 0 | H7: 7110 | K7: -7110 | L7: -7110 | M7: 0 | N7: 7012 | Q7: -7012 | R7: -7012 | S7: 0 | T7: 7078.2 | W7: -7078.2 | X7: -7078.2 | Y7: 0 | Z7: 7176.7 | AC7: -7176.7 | AD7: -7176.7 | AE7: 0 | AF7: 6974 | AI7: 6974 | AJ7: 6974 | AK7: 0 | AN7: 7146 | AO7: 7110 | AP7: 7012 | AQ7: 7078.2 | AR7: 7176.7
A8: 5 | B8: 7064 | E8: -7064 | F8: -7064 | G8: 0 | H8: 7029 | K8: -7029 | L8: -7029 | M8: 0 | N8: 6937 | Q8: -6937 | R8: -6937 | S8: 0 | T8: 7003.6 | W8: -7003.6 | X8: -7003.6 | Y8: 0 | Z8: 7101.7 | AC8: -7101.7 | AD8: -7101.7 | AE8: 0 | AF8: 6734.4 | AI8: 6734.4 | AJ8: 6734.4 | AK8: 0 | AN8: 7064 | AO8: 7029 | AP8: 6937 | AQ8: 7003.6 | AR8: 7101.7
A9: 6 | B9: 7019 | E9: -7019 | F9: -7019 | G9: 0 | H9: 6983 | K9: -6983 | L9: -6983 | M9: 0 | N9: 6889 | Q9: -6889 | R9: -6889 | S9: 0 | T9: 6948.8 | W9: -6948.8 | X9: -6948.8 | Y9: 0 | Z9: 7046.6 | AC9: -7046.6 | AD9: -7046.6 | AE9: 0 | AF9: 6621.4 | AI9: 6621.4 | AJ9: 6621.4 | AK9: 0 | AN9: 7019 | AO9: 6983 | AP9: 6889 | AQ9: 6948.8 | AR9: 7046.6
A10: 7 | B10: 6948 | E10: -6948 | F10: -6948 | G10: 0 | H10: 6901 | K10: -6901 | L10: -6901 | M10: 0 | N10: 6828 | Q10: -6828 | R10: -6828 | S10: 0 | T10: 6872.3 | W10: -6872.3 | X10: -6872.3 | Y10: 0 | Z10: 6960 | AC10: -6960 | AD10: -6960 | AE10: 0 | AF10: 6539 | AI10: 6539 | AJ10: 6539 | AK10: 0 | AN10: 6948 | AO10: 6901 | AP10: 6828 | AQ10: 6872.3 | AR10: 6960
A11: 8 | B11: 6951 | E11: -6951 | F11: -6951 | G11: 0 | H11: 6913 | K11: -6913 | L11: -6913 | M11: 0 | N11: 6837 | Q11: -6837 | R11: -6837 | S11: 0 | T11: 6872.7 | W11: -6872.7 | X11: -6872.7 | Y11: 0 | Z11: 6939.8 | AC11: -6939.8 | AD11: -6939.8 | AE11: 0 | AF11: 6587.6 | AI11: 6587.6 | AJ11: 6587.6 | AK11: 0 | AN11: 6951 | AO11: 6913 | AP11: 6837 | AQ11: 6872.7 | AR11: 6939.8
A12: 9 | B12: =AN12+$M$24 -> 6816 | E12: -6816 | F12: -6816 | G12: 0 | H12: =AO12+$M$24 -> 6794 | K12: -6794 | L12: -6794 | M12: 0 | N12: =AP12+$M$24 -> 6736 | Q12: -6736 | R12: -6736 | S12: 0 | T12: =AQ12+$M$24 -> 6829.8 | W12: -6829.8 | X12: -6829.8 | Y12: 0 | AF12: 6469 | AI12: 6469 | AJ12: 6469 | AK12: 0 | AN12: 6816 | AO12: 6794 | AP12: 6736 | AQ12: 6829.8
A13: 10 | B13: 6652 | E13: -6652 | F13: -6652 | G13: 0 | H13: 6631 | K13: -6631 | L13: -6631 | M13: 0 | N13: 6575 | Q13: -6575 | R13: -6575 | S13: 0 | T13: 6678.2 | W13: -6678.2 | X13: -6678.2 | Y13: 0 | AF13: 6426 | AI13: 6426 | AJ13: 6426 | AK13: 0 | AN13: 6652 | AO13: 6631 | AP13: 6575 | AQ13: 6678.2
A14: 11 | B14: 6554 | E14: -6554 | F14: -6554 | G14: 0 | H14: 6540 | K14: -6540 | L14: -6540 | M14: 0 | N14: 6519 | Q14: -6519 | R14: -6519 | S14: 0 | T14: =AQ14+$M$24 -> 6592.4 | W14: -6592.4 | X14: -6592.4 | Y14: 0 | AF14: 6409 | AI14: 6409 | AJ14: 6409 | AK14: 0 | AN14: 6554 | AO14: 6540 | AP14: 6519 | AQ14: 6592.4
A15: 12 | B15: 6342 | E15: -6342 | F15: -6342 | G15: 0 | N15: 6386 | Q15: -6386 | R15: -6386 | S15: 0 | T15: =AQ15+$M$24 -> 6508.3 | W15: -6508.3 | X15: -6508.3 | Y15: 0 | AF15: 6501 | AI15: =AG15-AF15 -> -6501 | AJ15: 6501 | AK15: 0 | AN15: 6342 | AP15: 6386 | AQ15: 6508.3
A16: 13 | B16: 6312 | E16: -6312 | F16: -6312 | G16: 0 | N16: 6395 | Q16: -6395 | R16: -6395 | S16: 0 | T16: =AQ16+$M$24 -> 6495.2 | W16: -6495.2 | X16: -6495.2 | Y16: 0 | AN16: 6312 | AP16: 6395 | AQ16: 6495.2
D23: RIGHT | H23: LEFT | M23: Offset
C24: A | D24: X | E24: X | F24: X | G24: X | H24: X | I24: X | J24: AS+ | K24: 30
C25: B | D25: X | E25: X | F25: X | G25: X | H25: X | I25: X | J25: AS | K25: 22
C26: C | D26: X | E26: X | F26: X | G26: X | H26: X | I26: X | J26: DL | K26: 15
